[Event "*** Titled Tuesday Blitz"]
[Site "Chess.com"]
[Date "2021.03.02"]
[Round "7"]
[White "gisela_roque"]
[Black "HrvojeZagreb"]
[Result "0-1"]
[WhiteElo "1755"]
[BlackElo "2264"]
[TimeControl "180+1"]
[EndTime "11:18:33 PST"]
[Termination "HrvojeZagreb won by resignation"]

1. c4 {[%clk 0:02:30.5]} 1... f5 {[%clk 0:02:52.8]} 2. Nf3 {[%clk 0:02:29.1]}
2... Nf6 {[%clk 0:02:52.5]} 3. Nc3 {[%clk 0:02:28.2]} 3... d6 {[%clk 0:02:51.7]}
4. g3 {[%clk 0:02:28.1]} 4... e5 {[%clk 0:02:51.5]} 5. d3 {[%clk 0:02:28.4]}
5... Be7 {[%clk 0:02:51.2]} 6. Bg2 {[%clk 0:02:28.5]} 6... O-O {[%clk
0:02:50.8]} 7. O-O {[%clk 0:02:26.7]} 7... Qe8 {[%clk 0:02:46.6]} 8. Rb1 {[%clk
0:02:24.7]} 8... a5 {[%clk 0:02:45.8]} 9. a3 {[%clk 0:02:24.4]} 9... Qh5 {[%clk
0:02:43.9]} 10. b4 {[%clk 0:02:21.3]} 10... f4 {[%clk 0:02:31.2]} 11. Ne4 {[%clk
0:02:09.3]} 11... Nxe4 {[%clk 0:02:21.6]} 12. dxe4 {[%clk 0:02:10.2]} 12... axb4
{[%clk 0:02:17.9]} 13. axb4 {[%clk 0:02:09.7]} 13... Bh3 {[%clk 0:02:13.2]} 14.
Qb3 {[%clk 0:02:04]} 14... Nc6 {[%clk 0:01:59.9]} 15. c5+ {[%clk 0:01:52.6]}
15... Kh8 {[%clk 0:01:56.1]} 16. cxd6 {[%clk 0:01:40.8]} 16... cxd6 {[%clk
0:01:57]} 17. b5 {[%clk 0:01:40.7]} 17... Bxg2 {[%clk 0:01:36.9]} 18. Kxg2
{[%clk 0:01:39.9]} 18... Nd4 {[%clk 0:01:35.3]} 19. Nxd4 {[%clk 0:01:38.7]}
19... exd4 {[%clk 0:01:34.9]} 20. Bxf4 {[%clk 0:01:35.5]} 20... Qxe2 {[%clk
0:01:30.6]} 21. Rbd1 {[%clk 0:01:26.2]} 21... Qxe4+ {[%clk 0:01:28.7]} 22. f3
{[%clk 0:01:22.4]} 22... Qg6 {[%clk 0:01:14.8]} 23. Rxd4 {[%clk 0:01:20.9]}
23... h6 {[%clk 0:00:54.3]} 24. Qd3 {[%clk 0:01:12.1]} 24... Ra2+ {[%clk
0:00:49.9]} 25. Rf2 {[%clk 0:01:11.2]} 25... Rxf2+ {[%clk 0:00:26.1]} 26. Kxf2
{[%clk 0:01:12.1]} 26... Qh5 {[%clk 0:00:21.5]} 27. Kg2 {[%clk 0:01:07.9]} 27...
Ra8 {[%clk 0:00:20.1]} 28. Qe3 {[%clk 0:00:59.5]} 28... Ra2+ {[%clk 0:00:19.1]}
29. Rd2 {[%clk 0:00:59.2]} 29... Rxd2+ {[%clk 0:00:18.4]} 30. Qxd2 {[%clk
0:01:00.1]} 30... Qxb5 {[%clk 0:00:18.2]} 31. Bxd6 {[%clk 0:01:00.1]} 31... Bxd6
{[%clk 0:00:17.6]} 32. Qxd6 {[%clk 0:00:59.4]} 32... Qe2+ {[%clk 0:00:17.2]} 33.
Kh3 {[%clk 0:00:54.2]} 33... Qxf3 {[%clk 0:00:17.4]} 34. Qc5 {[%clk 0:00:33.9]}
34... Kh7 {[%clk 0:00:09.4]} 35. Qc2+ {[%clk 0:00:32.4]} 35... Kh8 {[%clk
0:00:08.3]} 36. Qc8+ {[%clk 0:00:31.5]} 36... Kh7 {[%clk 0:00:08]} 37. Qc2+
{[%clk 0:00:31.1]} 37... Kg8 {[%clk 0:00:07.3]} 38. Qc8+ {[%clk 0:00:30.9]}
38... Kf7 {[%clk 0:00:06.1]} 39. Qc7+ {[%clk 0:00:30.3]} 39... Kg6 {[%clk
0:00:06.2]} 40. Qc2+ {[%clk 0:00:30.2]} 40... Qf5+ {[%clk 0:00:05.1]} 41. Qxf5+
{[%clk 0:00:27.5]} 41... Kxf5 {[%clk 0:00:06]} 0-1

[Event "*** Titled Tuesday Blitz"]
[Site "Chess.com"]
[Date "2021.03.02"]
[Round "7"]
[White "sara_khm"]
[Black "googlegoom"]
[Result "1-0"]
[WhiteElo "2613"]
[BlackElo "2470"]
[TimeControl "180+1"]
[EndTime "11:18:37 PST"]
[Termination "sara_khm won by resignation"]

1. d4 {[%clk 0:03:00.9]} 1... d5 {[%clk 0:02:59.8]} 2. Nf3 {[%clk 0:03:01.1]}
2... Nf6 {[%clk 0:02:59.6]} 3. g3 {[%clk 0:03:01.1]} 3... e6 {[%clk 0:02:59.4]}
4. Bg2 {[%clk 0:03:01.7]} 4... b6 {[%clk 0:02:59.9]} 5. O-O {[%clk 0:03:02.1]}
5... Bb7 {[%clk 0:03:00.6]} 6. b3 {[%clk 0:03:02.7]} 6... Be7 {[%clk 0:03:01]}
7. Bb2 {[%clk 0:03:03.2]} 7... O-O {[%clk 0:03:01.7]} 8. c4 {[%clk 0:03:03.2]}
8... Nbd7 {[%clk 0:03:02.3]} 9. cxd5 {[%clk 0:03:02.4]} 9... Nxd5 {[%clk
0:03:02.2]} 10. Nbd2 {[%clk 0:03:01.6]} 10... c5 {[%clk 0:03:02]} 11. Rc1 {[%clk
0:03:01.1]} 11... Rc8 {[%clk 0:03:01.7]} 12. a3 {[%clk 0:02:59]} 12... Rc7
{[%clk 0:02:57.7]} 13. dxc5 {[%clk 0:02:56.7]} 13... Rxc5 {[%clk 0:02:53.3]} 14.
e4 {[%clk 0:02:44.8]} 14... N5f6 {[%clk 0:02:47.7]} 15. e5 {[%clk 0:02:44.8]}
15... Nd5 {[%clk 0:02:47.5]} 16. b4 {[%clk 0:02:23.6]} 16... Rxc1 {[%clk
0:02:45.1]} 17. Qxc1 {[%clk 0:02:23]} 17... Qa8 {[%clk 0:02:45.7]} 18. Re1
{[%clk 0:02:16.7]} 18... Rc8 {[%clk 0:02:44.6]} 19. Qb1 {[%clk 0:02:16.6]} 19...
h6 {[%clk 0:02:33.3]} 20. Ne4 {[%clk 0:02:09.9]} 20... a5 {[%clk 0:02:21.3]} 21.
b5 {[%clk 0:02:05.9]} 21... Nc5 {[%clk 0:02:14]} 22. Nfd2 {[%clk 0:02:04.4]}
22... Nxe4 {[%clk 0:01:59.6]} 23. Bxe4 {[%clk 0:01:58.4]} 23... Nc3 {[%clk
0:01:53.3]} 24. Bxc3 {[%clk 0:01:57.5]} 24... Rxc3 {[%clk 0:01:52]} 25. a4
{[%clk 0:01:52.2]} 25... Rc8 {[%clk 0:01:18.6]} 26. Bxb7 {[%clk 0:01:31.4]}
26... Qxb7 {[%clk 0:01:17.3]} 27. Nb3 {[%clk 0:01:31.9]} 27... Qd5 {[%clk
0:01:11.3]} 28. Qd1 {[%clk 0:01:26]} 28... Qc4 {[%clk 0:01:02]} 29. Qd7 {[%clk
0:01:10.8]} 29... Rc7 {[%clk 0:00:49.8]} 30. Qe8+ {[%clk 0:01:10]} 30... Bf8
{[%clk 0:00:48.3]} 31. Rc1 {[%clk 0:01:09.8]} 31... Qxb3 {[%clk 0:00:37.7]} 32.
Rxc7 {[%clk 0:01:08.9]} 32... Qd1+ {[%clk 0:00:33.2]} 33. Kg2 {[%clk 0:01:06.6]}
33... Qd5+ {[%clk 0:00:24.8]} 34. Kh3 {[%clk 0:01:06.1]} 34... Qf3 {[%clk
0:00:24.3]} 35. Rc8 {[%clk 0:01:01.4]} 35... Qf5+ {[%clk 0:00:18.8]} 36. Kg2
{[%clk 0:01:00.6]} 36... Qe4+ {[%clk 0:00:19.2]} 37. Kf1 {[%clk 0:00:59]} 37...
Qb1+ {[%clk 0:00:18.4]} 38. Ke2 {[%clk 0:00:57.4]} 38... Qb2+ {[%clk 0:00:15.6]}
39. Kf3 {[%clk 0:00:52.3]} 39... Qb4 {[%clk 0:00:15.7]} 40. Qd8 {[%clk
0:00:32.3]} 40... g5 {[%clk 0:00:10.4]} 41. Rc7 {[%clk 0:00:29.5]} 41... Kh7
{[%clk 0:00:07.9]} 42. Rxf7+ {[%clk 0:00:28.1]} 1-0

[Event "*** Titled Tuesday Blitz"]
[Site "Chess.com"]
[Date "2021.03.02"]
[Round "7"]
[White "BanjoKazooieN64"]
[Black "oogee"]
[Result "0-1"]
[WhiteElo "2522"]
[BlackElo "2383"]
[TimeControl "180+1"]
[EndTime "11:18:37 PST"]
[Termination "oogee won on time"]

1. e4 {[%clk 0:03:00.9]} 1... c5 {[%clk 0:02:59.3]} 2. d4 {[%clk 0:03:01.2]}
2... cxd4 {[%clk 0:02:59.3]} 3. c3 {[%clk 0:03:01.8]} 3... d3 {[%clk 0:02:59.7]}
4. Nf3 {[%clk 0:03:01.4]} 4... g6 {[%clk 0:02:59.9]} 5. Qxd3 {[%clk 0:03:01.5]}
5... Bg7 {[%clk 0:03:00.3]} 6. h4 {[%clk 0:03:01.3]} 6... h5 {[%clk 0:02:55.3]}
7. Bg5 {[%clk 0:03:00.4]} 7... Nc6 {[%clk 0:02:53.9]} 8. Nbd2 {[%clk 0:02:59.6]}
8... Qa5 {[%clk 0:02:50]} 9. Nc4 {[%clk 0:02:56.7]} 9... Qa6 {[%clk 0:02:43.3]}
10. Qd5 {[%clk 0:02:48.7]} 10... b5 {[%clk 0:02:32.9]} 11. Na3 {[%clk
0:02:38.7]} 11... Bxc3+ {[%clk 0:02:27.9]} 12. bxc3 {[%clk 0:02:36.1]} 12...
Qxa3 {[%clk 0:02:27.1]} 13. Qd2 {[%clk 0:02:27.3]} 13... b4 {[%clk 0:02:20.7]}
14. cxb4 {[%clk 0:02:21.1]} 14... Qxb4 {[%clk 0:02:17.5]} 15. Bd3 {[%clk
0:02:08.5]} 15... Nh6 {[%clk 0:02:09.2]} 16. O-O {[%clk 0:01:49.7]} 16... Ng4
{[%clk 0:02:03.5]} 17. Rab1 {[%clk 0:01:44.6]} 17... Qxd2 {[%clk 0:01:54.6]} 18.
Bxd2 {[%clk 0:01:45.5]} 18... O-O {[%clk 0:01:53.8]} 19. Bb5 {[%clk 0:01:37.2]}
19... Nce5 {[%clk 0:01:47.8]} 20. Nxe5 {[%clk 0:01:32]} 20... Nxe5 {[%clk
0:01:47.3]} 21. Rfc1 {[%clk 0:01:08.1]} 21... a5 {[%clk 0:01:45.3]} 22. Rc7
{[%clk 0:00:55.1]} 22... Ba6 {[%clk 0:01:35.2]} 23. f4 {[%clk 0:00:39.8]} 23...
Ng4 {[%clk 0:01:13.8]} 24. Rxd7 {[%clk 0:00:31.2]} 24... Rfd8 {[%clk 0:01:02.6]}
25. Bxa5 {[%clk 0:00:20.1]} 25... Rdb8 {[%clk 0:00:58.8]} 26. Rd5 {[%clk
0:00:09.8]} 26... Bb7 {[%clk 0:00:51.6]} 27. Bc7 {[%clk 0:00:05.8]} 27... Bxd5
{[%clk 0:00:49.4]} 28. Bxb8 {[%clk 0:00:06]} 28... Bxe4 {[%clk 0:00:49.8]} 29.
Rb4 {[%clk 0:00:02.6]} 29... Rxb8 {[%clk 0:00:49.8]} 30. Rxe4 {[%clk 0:00:02.8]}
30... Rxb5 {[%clk 0:00:49.8]} 31. g3 {[%clk 0:00:02.8]} 31... Rb1+ {[%clk
0:00:46.4]} 32. Kg2 {[%clk 0:00:03.1]} 32... Rb2+ {[%clk 0:00:46.6]} 33. Kg1
{[%clk 0:00:03.6]} 33... Rxa2 {[%clk 0:00:45.1]} 34. Rxe7 {[%clk 0:00:03.8]}
34... Kg7 {[%clk 0:00:45]} 35. Rc7 {[%clk 0:00:04]} 35... Kf6 {[%clk 0:00:44.5]}
36. Rc5 {[%clk 0:00:04.3]} 36... Ne3 {[%clk 0:00:40.3]} 37. Rc3 {[%clk
0:00:03.7]} 37... Rg2+ {[%clk 0:00:38.4]} 38. Kh1 {[%clk 0:00:04.1]} 38... Rxg3
{[%clk 0:00:38.4]} 39. Rc6+ {[%clk 0:00:04.2]} 39... Kf5 {[%clk 0:00:38.1]} 40.
Rc7 {[%clk 0:00:04.7]} 40... f6 {[%clk 0:00:37.3]} 41. Rc6 {[%clk 0:00:05]}
41... Kg4 {[%clk 0:00:31]} 42. Rxf6 {[%clk 0:00:03.7]} 42... Kxh4 {[%clk
0:00:26.8]} 0-1

[Event "*** Titled Tuesday Blitz"]
[Site "Chess.com"]
[Date "2021.03.02"]
[Round "7"]
[White "Chernov_Alexander_A"]
[Black "MerryPoppies"]
[Result "1-0"]
[WhiteElo "2286"]
[BlackElo "2140"]
[TimeControl "180+1"]
[EndTime "11:18:37 PST"]
[Termination "Chernov_Alexander_A won by resignation"]

1. e4 {[%clk 0:02:54.4]} 1... e5 {[%clk 0:02:59.5]} 2. f4 {[%clk 0:02:52.6]}
2... d5 {[%clk 0:02:59.1]} 3. exd5 {[%clk 0:02:52.2]} 3... e4 {[%clk 0:02:59.2]}
4. d3 {[%clk 0:02:52.4]} 4... Qxd5 {[%clk 0:02:55.2]} 5. Nd2 {[%clk 0:02:50.3]}
5... Nf6 {[%clk 0:02:41.8]} 6. dxe4 {[%clk 0:02:47.3]} 6... Nxe4 {[%clk
0:02:41.5]} 7. Bc4 {[%clk 0:02:45.1]} 7... Qd4 {[%clk 0:02:08.6]} 8. Qe2 {[%clk
0:02:44.3]} 8... f5 {[%clk 0:01:50.2]} 9. Ngf3 {[%clk 0:02:40.1]} 9... Qd6
{[%clk 0:01:44]} 10. Nxe4 {[%clk 0:02:37.9]} 10... fxe4 {[%clk 0:01:34.7]} 11.
Qxe4+ {[%clk 0:02:37.6]} 11... Be7 {[%clk 0:01:34.4]} 12. O-O {[%clk 0:02:11.9]}
12... Nc6 {[%clk 0:01:28.4]} 13. Be3 {[%clk 0:02:05.9]} 13... Qg6 {[%clk
0:00:42.8]} 14. Qxg6+ {[%clk 0:01:31.5]} 14... hxg6 {[%clk 0:00:42.7]} 15. Rfe1
{[%clk 0:01:21.9]} 15... Bg4 {[%clk 0:00:37.1]} 16. Ng5 {[%clk 0:01:18.3]} 16...
Bxg5 {[%clk 0:00:35.6]} 17. fxg5 {[%clk 0:01:18.2]} 17... O-O-O {[%clk
0:00:35.6]} 18. h3 {[%clk 0:01:16.4]} 18... Bf5 {[%clk 0:00:35.6]} 19. c3 {[%clk
0:01:15.1]} 19... a6 {[%clk 0:00:33.3]} 20. Rad1 {[%clk 0:01:09]} 20... Rxd1
{[%clk 0:00:30.3]} 21. Rxd1 {[%clk 0:01:08.3]} 21... Re8 {[%clk 0:00:30.4]} 22.
Bf2 {[%clk 0:01:06.2]} 22... Rd8 {[%clk 0:00:20]} 23. Rxd8+ {[%clk 0:01:02.2]}
23... Kxd8 {[%clk 0:00:20.9]} 24. g4 {[%clk 0:01:00.4]} 24... Bb1 {[%clk
0:00:20.3]} 25. a4 {[%clk 0:00:57.3]} 25... Ne5 {[%clk 0:00:20.3]} 26. Be2
{[%clk 0:00:56.5]} 26... Kd7 {[%clk 0:00:19.1]} 27. Bd4 {[%clk 0:00:55.4]} 27...
Kd6 {[%clk 0:00:19.2]} 28. Bxe5+ {[%clk 0:00:52.7]} 28... Kxe5 {[%clk
0:00:20.1]} 29. Kf2 {[%clk 0:00:52.9]} 29... Bc2 {[%clk 0:00:20.3]} 30. a5
{[%clk 0:00:51.3]} 30... Bb3 {[%clk 0:00:20.5]} 31. Ke3 {[%clk 0:00:50.6]} 31...
Bd5 {[%clk 0:00:20.5]} 32. Bf3 {[%clk 0:00:49.7]} 32... c6 {[%clk 0:00:20.2]}
33. h4 {[%clk 0:00:41.8]} 33... Bf7 {[%clk 0:00:18.3]} 34. h5 {[%clk 0:00:37.9]}
34... gxh5 {[%clk 0:00:18.2]} 35. gxh5 {[%clk 0:00:37.8]} 35... Kf5 {[%clk
0:00:18.5]} 36. g6 {[%clk 0:00:34.1]} 36... Be8 {[%clk 0:00:17.2]} 37. Kd4
{[%clk 0:00:32.7]} 37... Ke6 {[%clk 0:00:11.5]} 38. Kc5 {[%clk 0:00:28.2]} 38...
Bd7 {[%clk 0:00:06.9]} 39. Kb6 {[%clk 0:00:25.3]} 39... Kd6 {[%clk 0:00:03.8]}
40. Kxb7 {[%clk 0:00:24.2]} 40... Bf5 {[%clk 0:00:03.9]} 1-0

[Event "*** Titled Tuesday Blitz"]
[Site "Chess.com"]
[Date "2021.03.02"]
[Round "7"]
[White "CheckThis4"]
[Black "ulkaf961"]
[Result "1-0"]
[WhiteElo "2628"]
[BlackElo "2397"]
[TimeControl "180+1"]
[EndTime "11:18:39 PST"]
[Termination "CheckThis4 won on time"]

1. d4 {[%clk 0:03:00.9]} 1... d5 {[%clk 0:02:56]} 2. Nf3 {[%clk 0:02:59.6]} 2...
e6 {[%clk 0:02:54.5]} 3. c4 {[%clk 0:02:58.7]} 3... a6 {[%clk 0:02:53.4]} 4. Nc3
{[%clk 0:02:49.4]} 4... dxc4 {[%clk 0:02:28]} 5. e4 {[%clk 0:02:48.6]} 5... b5
{[%clk 0:02:14.7]} 6. a4 {[%clk 0:02:48.4]} 6... b4 {[%clk 0:01:55.6]} 7. Ne2
{[%clk 0:02:48]} 7... Nc6 {[%clk 0:01:48.5]} 8. Ng3 {[%clk 0:02:45.6]} 8... Na5
{[%clk 0:01:48.1]} 9. Be2 {[%clk 0:02:27.5]} 9... Bb7 {[%clk 0:01:38.2]} 10. O-O
{[%clk 0:02:26.5]} 10... Nf6 {[%clk 0:01:37.6]} 11. Bg5 {[%clk 0:02:23.3]} 11...
Be7 {[%clk 0:01:37.4]} 12. Qc2 {[%clk 0:02:07.1]} 12... O-O {[%clk 0:01:21.7]}
13. Rad1 {[%clk 0:02:04.4]} 13... Nd7 {[%clk 0:00:58.3]} 14. Bxe7 {[%clk
0:01:57.1]} 14... Qxe7 {[%clk 0:00:58.1]} 15. Bxc4 {[%clk 0:01:56.8]} 15... Nxc4
{[%clk 0:00:55.8]} 16. Qxc4 {[%clk 0:01:57.7]} 16... Nb6 {[%clk 0:00:55.8]} 17.
Qc2 {[%clk 0:01:51.8]} 17... a5 {[%clk 0:00:56]} 18. b3 {[%clk 0:01:46.4]} 18...
Ba6 {[%clk 0:00:37.8]} 19. Rfe1 {[%clk 0:01:45.8]} 19... Nd7 {[%clk 0:00:34.2]}
20. Qxc7 {[%clk 0:01:41.1]} 20... Rfc8 {[%clk 0:00:33.9]} 21. Qf4 {[%clk
0:01:38.3]} 21... Rc3 {[%clk 0:00:33.1]} 22. Re3 {[%clk 0:01:32.1]} 22... Rac8
{[%clk 0:00:32.4]} 23. d5 {[%clk 0:01:15.8]} 23... e5 {[%clk 0:00:29.9]} 24. Qg4
{[%clk 0:01:10.3]} 24... Rxe3 {[%clk 0:00:27]} 25. fxe3 {[%clk 0:01:09.6]} 25...
Rc3 {[%clk 0:00:22.5]} 26. Nf5 {[%clk 0:01:05.7]} 26... Qf6 {[%clk 0:00:17.9]}
27. Nxg7 {[%clk 0:00:55.7]} 27... Qxg7 {[%clk 0:00:17.9]} 28. Qxd7 {[%clk
0:00:55.6]} 28... Be2 {[%clk 0:00:14]} 29. Qe8+ {[%clk 0:00:44.7]} 29... Qf8
{[%clk 0:00:13.3]} 30. Qxf8+ {[%clk 0:00:40.8]} 30... Kxf8 {[%clk 0:00:12.8]}
31. Rd2 {[%clk 0:00:40.9]} 31... Bd3 {[%clk 0:00:08.8]} 32. Nxe5 {[%clk
0:00:38.4]} 32... Bxe4 {[%clk 0:00:07.7]} 33. d6 {[%clk 0:00:37.1]} 33... Bf5
{[%clk 0:00:03.4]} 34. d7 {[%clk 0:00:36.1]} 34... Bxd7 {[%clk 0:00:03.2]} 35.
Rxd7 {[%clk 0:00:36.1]} 35... Rxe3 {[%clk 0:00:02.7]} 36. Nxf7 {[%clk
0:00:33.2]} 36... Rxb3 {[%clk 0:00:02.3]} 37. Ng5 {[%clk 0:00:32.1]} 37... Rb1+
{[%clk 0:00:02.1]} 38. Kf2 {[%clk 0:00:31.5]} 38... b3 {[%clk 0:00:02.3]} 39.
Nxh7+ {[%clk 0:00:31]} 39... Ke8 {[%clk 0:00:01.8]} 40. Nf6+ {[%clk 0:00:31.2]}
40... Kf8 {[%clk 0:00:02.1]} 41. Rb7 {[%clk 0:00:31]} 41... b2 {[%clk
0:00:02.2]} 42. h4 {[%clk 0:00:30.8]} 1-0

[Event "*** Titled Tuesday Blitz"]
[Site "Chess.com"]
[Date "2021.03.02"]
[Round "7"]
[White "kikydu96"]
[Black "Witik"]
[Result "0-1"]
[WhiteElo "2569"]
[BlackElo "2719"]
[TimeControl "180+1"]
[EndTime "11:18:41 PST"]
[Termination "Witik won by resignation"]

1. e4 {[%clk 0:03:00.9]} 1... c5 {[%clk 0:02:57.5]} 2. Nf3 {[%clk 0:02:52.6]}
2... Nc6 {[%clk 0:02:57.4]} 3. c3 {[%clk 0:02:51.7]} 3... e6 {[%clk 0:02:56.2]}
4. d4 {[%clk 0:02:51.1]} 4... d5 {[%clk 0:02:54.9]} 5. exd5 {[%clk 0:02:51.1]}
5... exd5 {[%clk 0:02:54.3]} 6. Bb5 {[%clk 0:02:51.4]} 6... Nf6 {[%clk
0:02:24.6]} 7. O-O {[%clk 0:02:42.5]} 7... Bd6 {[%clk 0:02:24.3]} 8. Re1+ {[%clk
0:02:40.3]} 8... Be6 {[%clk 0:02:24.2]} 9. dxc5 {[%clk 0:02:39.7]} 9... Bxc5
{[%clk 0:02:24.3]} 10. Nbd2 {[%clk 0:02:34]} 10... O-O {[%clk 0:02:20]} 11. Nb3
{[%clk 0:02:32.6]} 11... Bd6 {[%clk 0:02:06.5]} 12. Nbd4 {[%clk 0:02:31.7]}
12... Bd7 {[%clk 0:02:04]} 13. Bd3 {[%clk 0:02:17.3]} 13... Bg4 {[%clk
0:01:52.4]} 14. h3 {[%clk 0:02:17.4]} 14... Bh5 {[%clk 0:01:52.1]} 15. Bg5
{[%clk 0:02:15.6]} 15... h6 {[%clk 0:01:46.4]} 16. Bh4 {[%clk 0:02:14.3]} 16...
Nxd4 {[%clk 0:01:22.7]} 17. cxd4 {[%clk 0:02:10.7]} 17... g5 {[%clk 0:01:13.2]}
18. Bg3 {[%clk 0:02:09.7]} 18... Bxg3 {[%clk 0:01:13.6]} 19. fxg3 {[%clk
0:02:10.6]} 19... Qd6 {[%clk 0:00:43.7]} 20. g4 {[%clk 0:01:52.9]} 20... Bg6
{[%clk 0:00:43.4]} 21. Bxg6 {[%clk 0:01:50.1]} 21... fxg6 {[%clk 0:00:43.6]} 22.
Qb3 {[%clk 0:01:48.1]} 22... Rac8 {[%clk 0:00:19.6]} 23. Ne5 {[%clk 0:01:41.3]}
23... Rc7 {[%clk 0:00:17.5]} 24. Nxg6 {[%clk 0:01:39.4]} 24... Rfc8 {[%clk
0:00:14.9]} 25. Rad1 {[%clk 0:01:26.1]} 25... Kg7 {[%clk 0:00:15]} 26. Ne5
{[%clk 0:01:23.1]} 26... Ne4 {[%clk 0:00:15.1]} 27. Rf1 {[%clk 0:01:20.8]} 27...
Rf8 {[%clk 0:00:05.6]} 28. Rxf8 {[%clk 0:01:18.7]} 28... Qxf8 {[%clk 0:00:06]}
29. Rf1 {[%clk 0:00:54.4]} 29... Qxf1+ {[%clk 0:00:05.6]} 30. Kxf1 {[%clk
0:00:52.1]} 30... Nd2+ {[%clk 0:00:06.2]} 31. Ke2 {[%clk 0:00:49.9]} 31... Nxb3
{[%clk 0:00:07.1]} 32. axb3 {[%clk 0:00:50.5]} 32... Rc2+ {[%clk 0:00:07.3]} 33.
Kd3 {[%clk 0:00:42.6]} 33... Rxb2 {[%clk 0:00:07.5]} 34. Kc3 {[%clk 0:00:43.5]}
34... Rxg2 {[%clk 0:00:07.4]} 35. Nd7 {[%clk 0:00:41.7]} 35... Rg3+ {[%clk
0:00:06.4]} 36. Kb4 {[%clk 0:00:41.8]} 36... Rxh3 {[%clk 0:00:07.3]} 37. Nc5
{[%clk 0:00:41.1]} 37... b6 {[%clk 0:00:07]} 38. Ne6+ {[%clk 0:00:41.5]} 38...
Kf6 {[%clk 0:00:07.1]} 39. Nc7 {[%clk 0:00:42.4]} 39... Rg3 {[%clk 0:00:05.9]}
40. Nxd5+ {[%clk 0:00:42.4]} 40... Kf7 {[%clk 0:00:05.4]} 41. Nc7 {[%clk
0:00:38.3]} 41... Rxg4 {[%clk 0:00:05.6]} 42. Kc4 {[%clk 0:00:38.9]} 42... h5
{[%clk 0:00:06]} 43. Kd5 {[%clk 0:00:38.9]} 43... h4 {[%clk 0:00:06.4]} 44. Nb5
{[%clk 0:00:36.9]} 44... h3 {[%clk 0:00:06.6]} 45. Nd6+ {[%clk 0:00:35.7]} 45...
Kg6 {[%clk 0:00:07.2]} 46. Nc4 {[%clk 0:00:34.9]} 46... h2 {[%clk 0:00:07]} 47.
Ne5+ {[%clk 0:00:34.6]} 47... Kf5 {[%clk 0:00:07.1]} 0-1

[Event "*** Titled Tuesday Blitz"]
[Site "Chess.com"]
[Date "2021.03.02"]
[Round "7"]
[White "enriquetejedor"]
[Black "Piacramling"]
[Result "0-1"]
[WhiteElo "2502"]
[BlackElo "2324"]
[TimeControl "180+1"]
[EndTime "11:18:41 PST"]
[Termination "Piacramling won on time"]

1. e4 {[%clk 0:02:47.6]} 1... c5 {[%clk 0:02:59]} 2. Nc3 {[%clk 0:02:44.7]} 2...
Nc6 {[%clk 0:02:55.6]} 3. g3 {[%clk 0:02:43.1]} 3... g6 {[%clk 0:02:54.6]} 4.
Bg2 {[%clk 0:02:43.1]} 4... Bg7 {[%clk 0:02:54.4]} 5. d3 {[%clk 0:02:43.4]} 5...
d6 {[%clk 0:02:51.8]} 6. Be3 {[%clk 0:02:42.7]} 6... e5 {[%clk 0:02:50.9]} 7. f4
{[%clk 0:02:21]} 7... Nge7 {[%clk 0:02:46.9]} 8. Nh3 {[%clk 0:02:08.3]} 8... O-O
{[%clk 0:02:43.2]} 9. O-O {[%clk 0:02:03.6]} 9... exf4 {[%clk 0:02:26.5]} 10.
Nxf4 {[%clk 0:01:47.8]} 10... Be6 {[%clk 0:02:26.2]} 11. Nxe6 {[%clk 0:01:41.9]}
11... fxe6 {[%clk 0:02:25.4]} 12. Bh3 {[%clk 0:01:42.8]} 12... Qd7 {[%clk
0:02:24.3]} 13. Qg4 {[%clk 0:01:41.1]} 13... Nd4 {[%clk 0:02:07.9]} 14. Bxd4
{[%clk 0:01:33.7]} 14... Bxd4+ {[%clk 0:02:01.6]} 15. Kh1 {[%clk 0:01:29.4]}
15... Kg7 {[%clk 0:01:55.3]} 16. Qxe6 {[%clk 0:01:26.4]} 16... Qxe6 {[%clk
0:01:55]} 17. Bxe6 {[%clk 0:01:27.3]} 17... Nc6 {[%clk 0:01:50.6]} 18. Kg2
{[%clk 0:01:22.2]} 18... Ne5 {[%clk 0:01:38.6]} 19. Nd5 {[%clk 0:01:15.3]} 19...
Rxf1 {[%clk 0:01:27.2]} 20. Rxf1 {[%clk 0:01:13.8]} 20... Re8 {[%clk 0:01:26.1]}
21. Bh3 {[%clk 0:01:10.9]} 21... Nc6 {[%clk 0:00:59.2]} 22. c3 {[%clk
0:01:04.7]} 22... Be5 {[%clk 0:00:58.4]} 23. Bd7 {[%clk 0:00:57.8]} 23... Rd8
{[%clk 0:00:51.2]} 24. Bxc6 {[%clk 0:00:52.8]} 24... bxc6 {[%clk 0:00:50.3]} 25.
Ne7 {[%clk 0:00:52.9]} 25... Rb8 {[%clk 0:00:48.4]} 26. Rf2 {[%clk 0:00:49.3]}
26... Rb6 {[%clk 0:00:48.1]} 27. h3 {[%clk 0:00:41.3]} 27... h5 {[%clk
0:00:41.5]} 28. g4 {[%clk 0:00:30.5]} 28... hxg4 {[%clk 0:00:39.4]} 29. hxg4
{[%clk 0:00:31.4]} 29... Ra6 {[%clk 0:00:24.7]} 30. a3 {[%clk 0:00:19.7]} 30...
Rb6 {[%clk 0:00:23.5]} 31. Kf1 {[%clk 0:00:11.9]} 31... Rb3 {[%clk 0:00:20]} 32.
Nxc6 {[%clk 0:00:09.4]} 32... Bf6 {[%clk 0:00:17.7]} 33. Nxa7 {[%clk 0:00:06]}
33... Rb6 {[%clk 0:00:14.4]} 34. Nc8 {[%clk 0:00:06]} 34... Rc6 {[%clk
0:00:13.2]} 35. Na7 {[%clk 0:00:05]} 35... Rb6 {[%clk 0:00:11.8]} 0-1